[Event "Titled Tuesday Blitz September 21 2021"]
[White "Salgado Lopez, Ivan"]
[Black "Petrovskyi, Vadym"]
[WhiteFideId "2257327"]
[BlackFideId "14165210"]
[WhiteElo "2605"]
[BlackElo "2334"]
[Result "1/2-1/2"]
[Round "03"]
[TimeControl "180+1"]
[Date "2021.09.21"]
[WhiteClock "0:00:07"]
[BlackClock "0:00:07"]

1. g3 {[%clk 0:02:18]}  Nf6 {[%clk 0:02:58]} 2. Bg2 {[%clk 0:02:18]}  g6 {[%clk 0:02:58]} 3. b3 {[%clk 0:02:18]}  Bg7 {[%clk 0:02:59]} 4. Bb2 {[%clk 0:02:19]}  O-O {[%clk 0:02:59]} 5. c4 {[%clk 0:02:19]}  d6 {[%clk 0:02:53]} 6. Nc3 {[%clk 0:02:19]}  e5 {[%clk 0:02:53]} 7. e3 {[%clk 0:02:19]}  Nc6 {[%clk 0:02:51]} 8. Nge2 {[%clk 0:02:19]}  Re8 {[%clk 0:02:51]} 9. h3 {[%clk 0:02:19]}  a5 {[%clk 0:02:51]} 10. O-O {[%clk 0:02:18]}  Bf5 {[%clk 0:02:48]} 11. d3 {[%clk 0:02:17]}  h5 {[%clk 0:02:46]} 12. Qd2 {[%clk 0:02:15]}  Qd7 {[%clk 0:02:46]} 13. Kh2 {[%clk 0:02:14]}  Rad8 {[%clk 0:02:45]} 14. a3 {[%clk 0:02:13]}  Be6 {[%clk 0:02:44]} 15. Nd5 {[%clk 0:02:11]}  Ne7 {[%clk 0:02:23]} 16. Nxf6+ {[%clk 0:02:03]}  Bxf6 {[%clk 0:02:23]} 17. Qxa5 {[%clk 0:02:03]}  c6 {[%clk 0:02:22]} 18. f4 {[%clk 0:02:01]}  Nf5 {[%clk 0:02:19]} 19. Qd2 {[%clk 0:02:01]}  Bg7 {[%clk 0:02:03]} 20. e4 {[%clk 0:01:57]}  Nd4 {[%clk 0:01:47]} 21. Nxd4 {[%clk 0:01:45]}  exd4 {[%clk 0:01:48]} 22. Rae1 {[%clk 0:01:45]}  f5 {[%clk 0:01:45]} 23. exf5 {[%clk 0:01:23]}  Bxf5 {[%clk 0:01:43]} 24. b4 {[%clk 0:01:23]}  Re3 {[%clk 0:01:33]} 25. Rf3 {[%clk 0:01:00]}  Rde8 {[%clk 0:01:31]} 26. Rfxe3 {[%clk 0:00:59]}  dxe3 {[%clk 0:01:30]} 27. Qc2 {[%clk 0:00:57]}  Bxb2 {[%clk 0:01:25]} 28. Qxb2 {[%clk 0:00:57]}  Bxd3 {[%clk 0:01:24]} 29. Qd4 {[%clk 0:00:54]}  Qf5 {[%clk 0:01:16]} 30. Rxe3 {[%clk 0:00:46]}  Rxe3 {[%clk 0:01:14]} 31. Qxe3 {[%clk 0:00:47]}  Bxc4 {[%clk 0:01:14]} 32. Qe8+ {[%clk 0:00:44]}  Kg7 {[%clk 0:01:10]} 33. Qe7+ {[%clk 0:00:45]}  Kh6 {[%clk 0:01:01]} 34. Qxd6 {[%clk 0:00:45]}  Qc2 {[%clk 0:00:44]} 35. Qd4 {[%clk 0:00:44]}  Kh7 {[%clk 0:00:43]} 36. Qc5 {[%clk 0:00:34]}  Qe2 {[%clk 0:00:38]} 37. Qe5 {[%clk 0:00:30]}  Qc2 {[%clk 0:00:26]} 38. Qe4 {[%clk 0:00:25]}  Qa2 {[%clk 0:00:20]} 39. Qe7+ {[%clk 0:00:16]}  Kh6 {[%clk 0:00:18]} 40. Qg5+ {[%clk 0:00:12]}  Kh7 {[%clk 0:00:18]} 41. g4 {[%clk 0:00:08]}  Bd5 {[%clk 0:00:18]} 42. gxh5 {[%clk 0:00:08]}  gxh5 {[%clk 0:00:17]} 43. Qxh5+ {[%clk 0:00:09]}  Kg7 {[%clk 0:00:18]} 44. Qg5+ {[%clk 0:00:09]}  Kf8 {[%clk 0:00:18]} 45. b5 {[%clk 0:00:08]}  Qf2 {[%clk 0:00:16]} 46. bxc6 {[%clk 0:00:07]}  bxc6 {[%clk 0:00:17]} 47. Qg3 {[%clk 0:00:06]}  Qd2 {[%clk 0:00:17]} 48. h4 {[%clk 0:00:06]}  Bxg2 {[%clk 0:00:17]} 49. Qxg2 {[%clk 0:00:07]}  Qxf4+ {[%clk 0:00:17]} 50. Qg3 {[%clk 0:00:08]}  Qd2+ {[%clk 0:00:17]} 51. Kh3 {[%clk 0:00:08]}  Qd7+ {[%clk 0:00:17]} 52. Qg4 {[%clk 0:00:08]}  Qd3+ {[%clk 0:00:17]} 53. Qg3 {[%clk 0:00:08]}  Qd7+ {[%clk 0:00:17]} 54. Kg2 {[%clk 0:00:09]}  Qb7 {[%clk 0:00:14]} 55. Qf3+ {[%clk 0:00:09]}  Kg8 {[%clk 0:00:14]} 56. Kg3 {[%clk 0:00:09]}  Qc7+ {[%clk 0:00:14]} 57. Qf4 {[%clk 0:00:09]}  Qa5 {[%clk 0:00:14]} 58. a4 {[%clk 0:00:09]}  Qc3+ {[%clk 0:00:13]} 59. Kg4 {[%clk 0:00:10]}  c5 {[%clk 0:00:10]} 60. h5 {[%clk 0:00:09]}  c4 {[%clk 0:00:11]} 61. h6 {[%clk 0:00:08]}  Kh7 {[%clk 0:00:09]} 62. Kh4 {[%clk 0:00:05]}  Qd3 {[%clk 0:00:07]} 63. Kg5 {[%clk 0:00:06]}  Qd5+ {[%clk 0:00:07]} 64. Kg4 {[%clk 0:00:04]}  Qg2+ {[%clk 0:00:06]} 65. Kh4 {[%clk 0:00:05]}  Qh1+ {[%clk 0:00:06]} 66. Kg3 {[%clk 0:00:05]}  Qg1+ {[%clk 0:00:06]} 67. Kh3 {[%clk 0:00:05]}  Qh1+ {[%clk 0:00:06]} 68. Kg3 {[%clk 0:00:05]}  Qg1+ {[%clk 0:00:07]} 69. Kh3 {[%clk 0:00:06]}  Qh1+ {[%clk 0:00:07]} 70. Kg3 {[%clk 0:00:07]} 1/2-1/2


[Site "https://www.chess.com"]

[Event "Titled Tuesday Blitz September 21 2021"]
[White "Salinas Herrera, Pablo"]
[Black "Ozen, Bahadir"]
[WhiteFideId "3407128"]
[BlackFideId "6337058"]
[WhiteElo "2541"]
[BlackElo "2503"]
[Result "0-1"]
[Round "03"]
[TimeControl "180+1"]
[Date "2021.09.21"]
[WhiteClock "0:00:12"]
[BlackClock "0:00:13"]

1. d4 {[%clk 0:02:58]}  d5 {[%clk 0:02:59]} 2. Nf3 {[%clk 0:02:58]}  Nf6 {[%clk 0:02:58]} 3. c4 {[%clk 0:02:58]}  c6 {[%clk 0:02:56]} 4. e3 {[%clk 0:02:55]}  e6 {[%clk 0:02:55]} 5. Bd3 {[%clk 0:02:54]}  dxc4 {[%clk 0:02:55]} 6. Bxc4 {[%clk 0:02:54]}  c5 {[%clk 0:02:55]} 7. O-O {[%clk 0:02:54]}  a6 {[%clk 0:02:55]} 8. Bb3 {[%clk 0:02:52]}  b5 {[%clk 0:02:52]} 9. a4 {[%clk 0:02:50]}  Bb7 {[%clk 0:02:39]} 10. axb5 {[%clk 0:02:47]}  axb5 {[%clk 0:02:39]} 11. Rxa8 {[%clk 0:02:47]}  Bxa8 {[%clk 0:02:40]} 12. Na3 {[%clk 0:02:32]}  c4 {[%clk 0:02:23]} 13. Bc2 {[%clk 0:02:31]}  Bxa3 {[%clk 0:02:19]} 14. bxa3 {[%clk 0:02:31]}  O-O {[%clk 0:02:08]} 15. Qe2 {[%clk 0:02:23]}  Be4 {[%clk 0:02:03]} 16. a4 {[%clk 0:02:17]}  Qa5 {[%clk 0:01:46]} 17. axb5 {[%clk 0:02:12]}  Qxb5 {[%clk 0:01:46]} 18. Ba3 {[%clk 0:02:07]}  Bxc2 {[%clk 0:01:41]} 19. Qxc2 {[%clk 0:02:06]}  Rc8 {[%clk 0:01:41]} 20. Rb1 {[%clk 0:02:04]}  Qa6 {[%clk 0:01:34]} 21. Bb4 {[%clk 0:01:46]}  Nbd7 {[%clk 0:01:31]} 22. e4 {[%clk 0:01:36]}  h6 {[%clk 0:01:19]} 23. Bc3 {[%clk 0:01:34]}  Qc6 {[%clk 0:01:17]} 24. Nd2 {[%clk 0:01:34]}  Nb6 {[%clk 0:01:00]} 25. Rb4 {[%clk 0:01:33]}  Ra8 {[%clk 0:00:57]} 26. f3 {[%clk 0:01:28]}  Nh5 {[%clk 0:00:50]} 27. Qb1 {[%clk 0:01:16]}  Ra6 {[%clk 0:00:48]} 28. g3 {[%clk 0:01:05]}  Nf6 {[%clk 0:00:48]} 29. Kf2 {[%clk 0:00:57]}  Nfd7 {[%clk 0:00:48]} 30. Qf1 {[%clk 0:00:52]}  Ra3 {[%clk 0:00:47]} 31. Qc1 {[%clk 0:00:47]}  Ra4 {[%clk 0:00:44]} 32. Qb2 {[%clk 0:00:36]}  Rxb4 {[%clk 0:00:43]} 33. Qxb4 {[%clk 0:00:37]}  f5 {[%clk 0:00:42]} 34. Qe7 {[%clk 0:00:27]}  fxe4 {[%clk 0:00:39]} 35. fxe4 {[%clk 0:00:27]}  Nf6 {[%clk 0:00:29]} 36. Kf3 {[%clk 0:00:23]}  Na4 {[%clk 0:00:26]} 37. Qb4 {[%clk 0:00:22]}  Nb6 {[%clk 0:00:26]} 38. h3 {[%clk 0:00:20]}  Kh7 {[%clk 0:00:26]} 39. g4 {[%clk 0:00:20]}  Ng8 {[%clk 0:00:20]} 40. Ke3 {[%clk 0:00:19]}  Nf6 {[%clk 0:00:20]} 41. Qc5 {[%clk 0:00:18]}  Qb7 {[%clk 0:00:14]} 42. Qb4 {[%clk 0:00:12]}  Nbd5+ {[%clk 0:00:13]} 0-1


[Site "https://www.chess.com"]

[Event "Titled Tuesday Blitz September 21 2021"]
[White "Schut, Han"]
[Black "Leitao, Rafael"]
[WhiteFideId "1005561"]
[BlackFideId "2101246"]
[WhiteElo "2057"]
[BlackElo "2609"]
[Result "0-1"]
[Round "03"]
[TimeControl "180+1"]
[Date "2021.09.21"]
[WhiteClock "0:00:27"]
[BlackClock "0:00:26"]

1. e4 {[%clk 0:03:00]}  e5 {[%clk 0:02:59]} 2. Nf3 {[%clk 0:03:00]}  Nc6 {[%clk 0:02:58]} 3. Bc4 {[%clk 0:03:01]}  Nf6 {[%clk 0:02:58]} 4. d4 {[%clk 0:03:02]}  exd4 {[%clk 0:02:56]} 5. e5 {[%clk 0:03:02]}  Ne4 {[%clk 0:02:56]} 6. Qe2 {[%clk 0:02:59]}  Nc5 {[%clk 0:02:54]} 7. c3 {[%clk 0:02:59]}  d3 {[%clk 0:02:45]} 8. Qe3 {[%clk 0:02:59]}  Be7 {[%clk 0:02:42]} 9. b4 {[%clk 0:02:59]}  Ne6 {[%clk 0:02:42]} 10. Bxd3 {[%clk 0:02:58]}  d6 {[%clk 0:02:38]} 11. O-O {[%clk 0:02:30]}  Nxe5 {[%clk 0:02:24]} 12. Nxe5 {[%clk 0:02:23]}  dxe5 {[%clk 0:02:25]} 13. Rd1 {[%clk 0:02:24]}  Bd6 {[%clk 0:02:21]} 14. c4 {[%clk 0:02:07]}  c5 {[%clk 0:02:18]} 15. Bf5 {[%clk 0:01:50]}  Qf6 {[%clk 0:01:45]} 16. Bxe6 {[%clk 0:01:42]}  Bxe6 {[%clk 0:01:42]} 17. Nc3 {[%clk 0:01:36]}  Be7 {[%clk 0:01:23]} 18. Ne4 {[%clk 0:01:19]}  Qg6 {[%clk 0:01:17]} 19. bxc5 {[%clk 0:01:16]}  O-O {[%clk 0:01:14]} 20. Bb2 {[%clk 0:01:07]}  f5 {[%clk 0:01:03]} 21. Nd6 {[%clk 0:01:07]}  f4 {[%clk 0:00:48]} 22. Qxe5 {[%clk 0:01:02]}  f3 {[%clk 0:00:39]} 23. g3 {[%clk 0:00:56]}  Qh6 {[%clk 0:00:35]} 24. Re1 {[%clk 0:00:42]}  Rf6 {[%clk 0:00:34]} 25. Ne4 {[%clk 0:00:27]}  Qh3 {[%clk 0:00:25]} 26. Nxf6+ {[%clk 0:00:27]}  Kh8 {[%clk 0:00:26]} 0-1


[Site "https://www.chess.com"]

[Event "Titled Tuesday Blitz September 21 2021"]
[White "Shkapenko, Pavel"]
[Black "Shvedova, Alexandra"]
[WhiteFideId "4151933"]
[BlackFideId "54154782"]
[WhiteElo "2386"]
[BlackElo "1887"]
[Result "1-0"]
[Round "03"]
[TimeControl "180+1"]
[Date "2021.09.21"]
[WhiteClock "0:01:42"]
[BlackClock "0:01:28"]

1. e4 {[%clk 0:03:00]}  e5 {[%clk 0:02:59]} 2. Nf3 {[%clk 0:02:57]}  Nc6 {[%clk 0:02:59]} 3. g3 {[%clk 0:02:54]}  Nf6 {[%clk 0:02:54]} 4. d3 {[%clk 0:02:54]}  d5 {[%clk 0:02:54]} 5. exd5 {[%clk 0:02:53]}  Nxd5 {[%clk 0:02:52]} 6. Bg2 {[%clk 0:02:53]}  Bc5 {[%clk 0:02:51]} 7. O-O {[%clk 0:02:53]}  O-O {[%clk 0:02:51]} 8. Bd2 {[%clk 0:02:44]}  f6 {[%clk 0:02:47]} 9. Nc3 {[%clk 0:02:43]}  a6 {[%clk 0:02:47]} 10. Nxe5 {[%clk 0:02:36]}  Nxc3 {[%clk 0:02:38]} 11. Nxc6 {[%clk 0:02:36]}  Nxd1 {[%clk 0:02:35]} 12. Nxd8 {[%clk 0:02:36]}  Nxf2 {[%clk 0:02:25]} 13. Nxb7 {[%clk 0:02:28]}  Nxd3+ {[%clk 0:01:56]} 14. Nxc5 {[%clk 0:02:27]}  Nxc5 {[%clk 0:01:52]} 15. Bxa8 {[%clk 0:02:22]}  Be6 {[%clk 0:01:49]} 16. Bg2 {[%clk 0:02:21]}  Rb8 {[%clk 0:01:48]} 17. b3 {[%clk 0:02:21]}  c6 {[%clk 0:01:46]} 18. Rfe1 {[%clk 0:02:18]}  Bd5 {[%clk 0:01:46]} 19. Bxd5+ {[%clk 0:02:17]}  cxd5 {[%clk 0:01:47]} 20. Re7 {[%clk 0:02:16]}  Ne4 {[%clk 0:01:46]} 21. Be3 {[%clk 0:02:14]}  Rc8 {[%clk 0:01:45]} 22. c4 {[%clk 0:02:14]}  Kf8 {[%clk 0:01:43]} 23. Re6 {[%clk 0:02:12]}  Kf7 {[%clk 0:01:39]} 24. cxd5 {[%clk 0:02:12]}  Nc3 {[%clk 0:01:37]} 25. Rxa6 {[%clk 0:02:03]}  Nxd5 {[%clk 0:01:36]} 26. Rc1 {[%clk 0:01:55]}  Re8 {[%clk 0:01:31]} 27. Bf2 {[%clk 0:01:50]}  Kg8 {[%clk 0:01:30]} 28. Kf1 {[%clk 0:01:45]}  f5 {[%clk 0:01:29]} 29. Rd6 {[%clk 0:01:44]}  Nb4 {[%clk 0:01:28]} 30. a3 {[%clk 0:01:42]}  Na2 {[%clk 0:01:28]} 31. Rc2 {[%clk 0:01:42]} 1-0


[Site "https://www.chess.com"]

[Event "Titled Tuesday Blitz September 21 2021"]
[White "Swapnil, S. Dhopade"]
[Black "Rodchenkov, Vitaly"]
[WhiteFideId "5019184"]
[BlackFideId "4152964"]
[WhiteElo "2402"]
[BlackElo "2337"]
[Result "1-0"]
[Round "03"]
[TimeControl "180+1"]
[Date "2021.09.21"]
[WhiteClock "0:01:20"]
[BlackClock "0:02:11"]

1. Nf3 {[%clk 0:03:00]}  Nf6 {[%clk 0:02:59]} 2. g3 {[%clk 0:03:01]}  b5 {[%clk 0:02:58]} 3. Na3 {[%clk 0:02:58]}  b4 {[%clk 0:02:55]} 4. Nc4 {[%clk 0:02:57]}  d5 {[%clk 0:02:55]} 5. Nce5 {[%clk 0:02:57]}  Bb7 {[%clk 0:02:54]} 6. Bg2 {[%clk 0:02:56]}  c5 {[%clk 0:02:53]} 7. O-O {[%clk 0:02:56]}  Nbd7 {[%clk 0:02:54]} 8. c4 {[%clk 0:02:47]}  d4 {[%clk 0:02:50]} 9. Qa4 {[%clk 0:02:22]}  e6 {[%clk 0:02:46]} 10. e3 {[%clk 0:02:22]}  Bd6 {[%clk 0:02:40]} 11. exd4 {[%clk 0:02:03]}  cxd4 {[%clk 0:02:39]} 12. Nxd7 {[%clk 0:01:58]}  Qxd7 {[%clk 0:02:39]} 13. Qxd7+ {[%clk 0:01:58]}  Kxd7 {[%clk 0:02:38]} 14. Nxd4 {[%clk 0:01:59]}  Bxg2 {[%clk 0:02:38]} 15. Kxg2 {[%clk 0:01:59]}  Rhc8 {[%clk 0:02:37]} 16. d3 {[%clk 0:01:49]}  e5 {[%clk 0:02:19]} 17. Nf5 {[%clk 0:01:41]}  Bf8 {[%clk 0:02:18]} 18. Re1 {[%clk 0:01:31]}  g6 {[%clk 0:02:14]} 19. Bg5 {[%clk 0:01:23]}  Ke6 {[%clk 0:02:11]} 20. Nd4+ {[%clk 0:01:21]}  Ke7 {[%clk 0:02:11]} 21. Rxe5+ {[%clk 0:01:20]} 1-0


[Site "https://www.chess.com"]

[Event "Titled Tuesday Blitz September 21 2021"]
[White "Szpar, Milosz"]
[Black "Khusnutdinov, Rustam"]
[WhiteFideId "1184989"]
[BlackFideId "13701703"]
[WhiteElo "2282"]
[BlackElo "2571"]
[Result "0-1"]
[Round "03"]
[TimeControl "180+1"]
[Date "2021.09.21"]
[WhiteClock "0:00:13"]
[BlackClock "0:01:26"]

1. e4 {[%clk 0:02:58]}  e5 {[%clk 0:02:59]} 2. Nf3 {[%clk 0:02:58]}  Nf6 {[%clk 0:02:59]} 3. d4 {[%clk 0:02:58]}  Nxe4 {[%clk 0:02:59]} 4. Bd3 {[%clk 0:02:53]}  d5 {[%clk 0:02:59]} 5. Nxe5 {[%clk 0:02:51]}  Nd7 {[%clk 0:02:57]} 6. Nxd7 {[%clk 0:02:50]}  Bxd7 {[%clk 0:02:58]} 7. O-O {[%clk 0:02:50]}  Bd6 {[%clk 0:02:57]} 8. Qh5 {[%clk 0:02:49]}  Qf6 {[%clk 0:02:58]} 9. Qxd5 {[%clk 0:02:02]}  Bc6 {[%clk 0:02:56]} 10. Bb5 {[%clk 0:02:02]}  O-O-O {[%clk 0:02:55]} 11. Bxc6 {[%clk 0:01:54]}  Bxh2+ {[%clk 0:02:52]} 12. Kxh2 {[%clk 0:01:53]}  Rxd5 {[%clk 0:02:52]} 13. Bxd5 {[%clk 0:01:53]}  Qd6+ {[%clk 0:02:52]} 14. Kg1 {[%clk 0:01:40]}  Qxd5 {[%clk 0:02:51]} 15. Be3 {[%clk 0:01:37]}  Re8 {[%clk 0:02:48]} 16. Rd1 {[%clk 0:01:33]}  Qh5 {[%clk 0:02:40]} 17. Nd2 {[%clk 0:01:28]}  Nf6 {[%clk 0:02:36]} 18. Nf3 {[%clk 0:01:25]}  Nd5 {[%clk 0:02:31]} 19. Re1 {[%clk 0:01:21]}  Qf5 {[%clk 0:02:25]} 20. Rac1 {[%clk 0:01:06]}  Re6 {[%clk 0:02:25]} 21. Ne5 {[%clk 0:01:01]}  Rb6 {[%clk 0:02:10]} 22. b3 {[%clk 0:00:44]}  Rf6 {[%clk 0:02:06]} 23. g4 {[%clk 0:00:40]}  Qe6 {[%clk 0:02:01]} 24. Bg5 {[%clk 0:00:39]}  Rg6 {[%clk 0:01:52]} 25. Nxg6 {[%clk 0:00:37]}  Qxg4+ {[%clk 0:01:51]} 26. Kf1 {[%clk 0:00:36]}  Qxg5 {[%clk 0:01:45]} 27. Nf8 {[%clk 0:00:36]}  b6 {[%clk 0:01:40]} 28. c4 {[%clk 0:00:35]}  Nf4 {[%clk 0:01:40]} 29. Re8+ {[%clk 0:00:35]}  Kb7 {[%clk 0:01:40]} 30. Rc3 {[%clk 0:00:34]}  Qg2+ {[%clk 0:01:39]} 31. Ke1 {[%clk 0:00:34]}  Qg1+ {[%clk 0:01:39]} 32. Kd2 {[%clk 0:00:34]}  Qxf2+ {[%clk 0:01:40]} 33. Kd1 {[%clk 0:00:35]}  Qxd4+ {[%clk 0:01:40]} 34. Kc2 {[%clk 0:00:36]}  Qf2+ {[%clk 0:01:33]} 35. Kb1 {[%clk 0:00:32]}  g5 {[%clk 0:01:33]} 36. Nd7 {[%clk 0:00:30]}  Qd4 {[%clk 0:01:29]} 37. Re4 {[%clk 0:00:14]}  Qxe4+ {[%clk 0:01:27]} 38. Kb2 {[%clk 0:00:13]}  Qd4 {[%clk 0:01:26]} 0-1


[Site "https://www.chess.com"]

[Event "Titled Tuesday Blitz September 21 2021"]
[White "Tang, Andrew"]
[Black "Srihari L R"]
[WhiteFideId "2059630"]
[BlackFideId "46617116"]
[WhiteElo "2983"]
[BlackElo "2709"]
[Result "1-0"]
[Round "03"]
[TimeControl "180+1"]
[Date "2021.09.21"]
[WhiteClock "0:00:41"]
[BlackClock "0:00:12"]

1. d4 {[%clk 0:03:00]}  d5 {[%clk 0:03:00]} 2. Bf4 {[%clk 0:03:00]}  Bf5 {[%clk 0:02:57]} 3. c4 {[%clk 0:03:01]}  e6 {[%clk 0:02:56]} 4. Nc3 {[%clk 0:03:01]}  Nc6 {[%clk 0:02:43]} 5. e3 {[%clk 0:03:00]}  Nf6 {[%clk 0:02:42]} 6. Qb3 {[%clk 0:02:52]}  Nb4 {[%clk 0:02:33]} 7. Rc1 {[%clk 0:02:49]}  c5 {[%clk 0:02:22]} 8. cxd5 {[%clk 0:02:14]}  exd5 {[%clk 0:02:04]} 9. dxc5 {[%clk 0:02:08]}  Bxc5 {[%clk 0:02:01]} 10. a3 {[%clk 0:01:59]}  Nc2+ {[%clk 0:01:22]} 11. Rxc2 {[%clk 0:01:47]}  Bxc2 {[%clk 0:01:21]} 12. Bb5+ {[%clk 0:01:44]}  Kf8 {[%clk 0:01:15]} 13. Qxc2 {[%clk 0:01:42]}  a6 {[%clk 0:01:15]} 14. Be2 {[%clk 0:01:39]}  d4 {[%clk 0:01:14]} 15. exd4 {[%clk 0:01:37]}  Qxd4 {[%clk 0:01:13]} 16. Bg3 {[%clk 0:01:33]}  Re8 {[%clk 0:00:29]} 17. Nf3 {[%clk 0:01:33]}  Qd7 {[%clk 0:00:28]} 18. O-O {[%clk 0:01:33]}  h5 {[%clk 0:00:25]} 19. Bc4 {[%clk 0:01:17]}  b5 {[%clk 0:00:22]} 20. Ba2 {[%clk 0:01:16]}  Qa7 {[%clk 0:00:21]} 21. Ne5 {[%clk 0:01:08]}  h4 {[%clk 0:00:20]} 22. Bf4 {[%clk 0:01:06]}  Nh5 {[%clk 0:00:15]} 23. Qf5 {[%clk 0:01:06]}  Nxf4 {[%clk 0:00:14]} 24. Nxf7 {[%clk 0:00:50]}  Rh5 {[%clk 0:00:12]} 25. Ng5+ {[%clk 0:00:41]} 1-0


[Site "https://www.chess.com"]

[Event "Titled Tuesday Blitz September 21 2021"]
[White "Vakhlamov, Igor L."]
[Black "Vasli, Aref"]
[WhiteFideId "24126748"]
[BlackFideId "417521"]
[WhiteElo "2416"]
[BlackElo "2257"]
[Result "1-0"]
[Round "03"]
[TimeControl "180+1"]
[Date "2021.09.21"]
[WhiteClock "0:00:04"]
[BlackClock "0:00:06"]

1. e4 {[%clk 0:02:39]}  e5 {[%clk 0:02:56]} 2. Nf3 {[%clk 0:02:39]}  Nc6 {[%clk 0:02:56]} 3. Nc3 {[%clk 0:02:39]}  Nf6 {[%clk 0:02:55]} 4. Bb5 {[%clk 0:02:39]}  Bb4 {[%clk 0:02:49]} 5. O-O {[%clk 0:02:39]}  O-O {[%clk 0:02:48]} 6. d3 {[%clk 0:02:39]}  d6 {[%clk 0:02:46]} 7. Bg5 {[%clk 0:02:38]}  Bxc3 {[%clk 0:02:46]} 8. bxc3 {[%clk 0:02:39]}  Bd7 {[%clk 0:02:46]} 9. Rb1 {[%clk 0:02:36]}  h6 {[%clk 0:02:34]} 10. Bh4 {[%clk 0:02:35]}  Rb8 {[%clk 0:02:33]} 11. Nd2 {[%clk 0:02:33]}  a6 {[%clk 0:02:31]} 12. Ba4 {[%clk 0:02:32]}  b5 {[%clk 0:02:30]} 13. Bb3 {[%clk 0:02:32]}  Na5 {[%clk 0:02:31]} 14. d4 {[%clk 0:02:26]}  c5 {[%clk 0:02:28]} 15. Bd5 {[%clk 0:02:24]}  g5 {[%clk 0:02:27]} 16. Bg3 {[%clk 0:02:24]}  Nxd5 {[%clk 0:02:28]} 17. exd5 {[%clk 0:02:24]}  f5 {[%clk 0:02:28]} 18. f3 {[%clk 0:02:03]}  exd4 {[%clk 0:02:14]} 19. cxd4 {[%clk 0:02:02]}  f4 {[%clk 0:02:12]} 20. Bf2 {[%clk 0:02:02]}  Nb7 {[%clk 0:01:59]} 21. dxc5 {[%clk 0:01:53]}  Nxc5 {[%clk 0:01:57]} 22. Bxc5 {[%clk 0:01:50]}  dxc5 {[%clk 0:01:56]} 23. Ne4 {[%clk 0:01:50]}  Qb6 {[%clk 0:01:54]} 24. c4 {[%clk 0:01:49]}  Bf5 {[%clk 0:01:52]} 25. Re1 {[%clk 0:01:47]}  Rbe8 {[%clk 0:01:51]} 26. Qd3 {[%clk 0:01:40]}  Re5 {[%clk 0:01:21]} 27. Kh1 {[%clk 0:01:11]}  b4 {[%clk 0:01:16]} 28. d6 {[%clk 0:01:07]}  Rd8 {[%clk 0:01:15]} 29. Rbd1 {[%clk 0:01:05]}  Kf7 {[%clk 0:01:00]} 30. Qd2 {[%clk 0:00:56]}  Bxe4 {[%clk 0:00:52]} 31. Rxe4 {[%clk 0:00:57]}  Rxe4 {[%clk 0:00:45]} 32. fxe4 {[%clk 0:00:56]}  Qc6 {[%clk 0:00:43]} 33. e5 {[%clk 0:00:52]}  Qe4 {[%clk 0:00:43]} 34. Re1 {[%clk 0:00:45]}  Qxc4 {[%clk 0:00:41]} 35. e6+ {[%clk 0:00:44]}  Ke8 {[%clk 0:00:33]} 36. d7+ {[%clk 0:00:13]}  Ke7 {[%clk 0:00:33]} 37. Qb2 {[%clk 0:00:11]}  Qc3 {[%clk 0:00:33]} 38. Qb1 {[%clk 0:00:11]}  f3 {[%clk 0:00:15]} 39. Qh7+ {[%clk 0:00:02]}  Kd6 {[%clk 0:00:15]} 40. Rd1+ {[%clk 0:00:03]}  Kc7 {[%clk 0:00:15]} 41. Qe4 {[%clk 0:00:03]}  fxg2+ {[%clk 0:00:15]} 42. Kxg2 {[%clk 0:00:03]}  Qb2+ {[%clk 0:00:13]} 43. Kh1 {[%clk 0:00:04]}  Qxa2 {[%clk 0:00:05]} 44. e7 {[%clk 0:00:04]}  Rxd7 {[%clk 0:00:05]} 45. Rxd7+ {[%clk 0:00:04]}  Kxd7 {[%clk 0:00:05]} 46. e8=Q+ {[%clk 0:00:04]}  Kc7 {[%clk 0:00:06]} 47. Q4c6# {[%clk 0:00:04]} 1-0


[Site "https://www.chess.com"]

[Event "Titled Tuesday Blitz September 21 2021"]
[White "Vignesh, N R"]
[Black "Hajiyeva, Laman"]
[WhiteFideId "25012215"]
[BlackFideId "13415875"]
[WhiteElo "2395"]
[BlackElo "1728"]
[Result "1-0"]
[Round "03"]
[TimeControl "180+1"]
[Date "2021.09.21"]
[WhiteClock "0:01:11"]
[BlackClock "0:00:47"]

1. e4 {[%clk 0:03:00]}  e6 {[%clk 0:03:00]} 2. d4 {[%clk 0:03:00]}  d5 {[%clk 0:03:00]} 3. Nd2 {[%clk 0:03:00]}  Be7 {[%clk 0:02:59]} 4. Ngf3 {[%clk 0:02:59]}  Nf6 {[%clk 0:02:59]} 5. Bd3 {[%clk 0:02:58]}  c5 {[%clk 0:02:58]} 6. exd5 {[%clk 0:02:57]}  exd5 {[%clk 0:02:59]} 7. dxc5 {[%clk 0:02:57]}  Bxc5 {[%clk 0:02:59]} 8. O-O {[%clk 0:02:55]}  O-O {[%clk 0:02:59]} 9. Nb3 {[%clk 0:02:56]}  Bb6 {[%clk 0:02:59]} 10. h3 {[%clk 0:02:55]}  h6 {[%clk 0:02:58]} 11. Nbd4 {[%clk 0:02:53]}  Nc6 {[%clk 0:02:57]} 12. c3 {[%clk 0:02:54]}  a6 {[%clk 0:02:47]} 13. Be3 {[%clk 0:02:53]}  Bc7 {[%clk 0:02:46]} 14. Re1 {[%clk 0:02:53]}  Qd6 {[%clk 0:02:46]} 15. Qc2 {[%clk 0:02:49]}  Re8 {[%clk 0:02:31]} 16. Rad1 {[%clk 0:02:48]}  Bd7 {[%clk 0:02:21]} 17. a3 {[%clk 0:02:34]}  Rac8 {[%clk 0:02:13]} 18. c4 {[%clk 0:02:33]}  dxc4 {[%clk 0:02:05]} 19. Bxc4 {[%clk 0:02:32]}  Nxd4 {[%clk 0:02:00]} 20. Rxd4 {[%clk 0:02:28]}  Qc6 {[%clk 0:01:56]} 21. Rc1 {[%clk 0:01:56]}  Bb6 {[%clk 0:01:51]} 22. Qb3 {[%clk 0:01:47]}  Kh8 {[%clk 0:01:37]} 23. Bxf7 {[%clk 0:01:41]}  Rxe3 {[%clk 0:01:27]} 24. Rxc6 {[%clk 0:01:35]}  Rxb3 {[%clk 0:01:27]} 25. Rxc8+ {[%clk 0:01:25]}  Bxc8 {[%clk 0:01:28]} 26. Bxb3 {[%clk 0:01:25]}  Bxd4 {[%clk 0:01:29]} 27. Nxd4 {[%clk 0:01:26]}  Ne4 {[%clk 0:01:26]} 28. f3 {[%clk 0:01:24]}  Nc5 {[%clk 0:01:25]} 29. Bc2 {[%clk 0:01:23]}  b6 {[%clk 0:01:19]} 30. b4 {[%clk 0:01:22]}  Ne6 {[%clk 0:01:18]} 31. Nxe6 {[%clk 0:01:22]}  Bxe6 {[%clk 0:01:19]} 32. Kf2 {[%clk 0:01:22]}  a5 {[%clk 0:01:19]} 33. Ke3 {[%clk 0:01:23]}  Kg8 {[%clk 0:01:18]} 34. bxa5 {[%clk 0:01:22]}  bxa5 {[%clk 0:01:18]} 35. Kd4 {[%clk 0:01:23]}  Bd7 {[%clk 0:01:13]} 36. Kc5 {[%clk 0:01:22]}  Kf7 {[%clk 0:01:09]} 37. Kb6 {[%clk 0:01:22]}  a4 {[%clk 0:01:04]} 38. Ka5 {[%clk 0:01:22]}  Be6 {[%clk 0:01:03]} 39. Kxa4 {[%clk 0:01:19]}  Kf6 {[%clk 0:01:03]} 40. Kb5 {[%clk 0:01:18]}  Bd7+ {[%clk 0:01:02]} 41. Kc5 {[%clk 0:01:18]}  Bc8 {[%clk 0:01:01]} 42. h4 {[%clk 0:01:18]}  Ba6 {[%clk 0:01:00]} 43. a4 {[%clk 0:01:17]}  h5 {[%clk 0:00:59]} 44. a5 {[%clk 0:01:16]}  Bf1 {[%clk 0:00:59]} 45. g3 {[%clk 0:01:16]}  Bg2 {[%clk 0:00:57]} 46. f4 {[%clk 0:01:12]}  Ke6 {[%clk 0:00:52]} 47. a6 {[%clk 0:01:11]}  Bf1 {[%clk 0:00:47]} 48. a7 {[%clk 0:01:12]}  Bg2 {[%clk 0:00:47]} 49. Bb3+ {[%clk 0:01:11]} 1-0


[Site "https://www.chess.com"]